[Event "Late-Titled-Tuesday-Blitz-March-05-2024"]
[Site "Chess.com"]
[Date "2024.03.05"]
[Round "5"]
[White "zverr1"]
[Black "KetiTsatsalashvili"]
[Result "0-1"]
[WhiteElo "2586"]
[BlackElo "2478"]
[TimeControl "180+1"]
[EndTime "14:57:26 PST"]
[Termination "KetiTsatsalashvili won by checkmate"]

1. e4 {[%clk 0:03:00.9]} 1... c5 {[%clk 0:02:57.9]} 2. Nf3 {[%clk 0:03:00.8]}
2... d6 {[%clk 0:02:54.8]} 3. Nc3 {[%clk 0:02:59.1]} 3... Nf6 {[%clk 0:02:53.8]}
4. e5 {[%clk 0:02:57.8]} 4... dxe5 {[%clk 0:02:53.4]} 5. Nxe5 {[%clk 0:02:58.7]}
5... e6 {[%clk 0:02:52.8]} 6. Bb5+ {[%clk 0:02:57.6]} 6... Nbd7 {[%clk
0:02:45.7]} 7. d4 {[%clk 0:02:50.8]} 7... cxd4 {[%clk 0:02:44.1]} 8. Qxd4 {[%clk
0:02:49.6]} 8... a6 {[%clk 0:02:42.6]} 9. Bxd7+ {[%clk 0:02:45.9]} 9... Bxd7
{[%clk 0:02:43.5]} 10. Bg5 {[%clk 0:02:33.3]} 10... Bc6 {[%clk 0:02:22]} 11.
Nxc6 {[%clk 0:02:26.3]} 11... bxc6 {[%clk 0:02:21.1]} 12. Bxf6 {[%clk
0:01:48.4]} 12... Qxf6 {[%clk 0:02:11.1]} 13. Qe4 {[%clk 0:01:29.1]} 13... Rc8
{[%clk 0:02:05.6]} 14. O-O-O {[%clk 0:01:18.7]} 14... Be7 {[%clk 0:01:57.3]} 15.
f4 {[%clk 0:01:01.3]} 15... O-O {[%clk 0:01:56.2]} 16. Rd7 {[%clk 0:01:00.6]}
16... Rfd8 {[%clk 0:01:45.6]} 17. Rhd1 {[%clk 0:00:58.9]} 17... h6 {[%clk
0:01:40.8]} 18. g3 {[%clk 0:00:46.3]} 18... Rxd7 {[%clk 0:01:35]} 19. Rxd7
{[%clk 0:00:47.2]} 19... Bf8 {[%clk 0:01:35.7]} 20. Qe5 {[%clk 0:00:33.4]} 20...
Qg6 {[%clk 0:01:29.7]} 21. Na4 {[%clk 0:00:15.7]} 21... Qg4 {[%clk 0:01:21.2]}
22. Nb6 {[%clk 0:00:10.5]} 22... Re8 {[%clk 0:01:20.9]} 23. a3 {[%clk
0:00:05.4]} 23... Qf3 {[%clk 0:01:13.8]} 24. Kb1 {[%clk 0:00:05.4]} 24... Qh1+
{[%clk 0:01:02.2]} 25. Ka2 {[%clk 0:00:06]} 25... Qxh2 {[%clk 0:01:02.8]} 26.
Qc3 {[%clk 0:00:03.1]} 26... Be7 {[%clk 0:00:58.3]} 27. Rc7 {[%clk 0:00:02.7]}
27... Bf6 {[%clk 0:00:53.7]} 28. Qxc6 {[%clk 0:00:03]} 28... Rf8 {[%clk
0:00:51.7]} 29. Nd7 {[%clk 0:00:03]} 29... Rd8 {[%clk 0:00:37]} 30. Rc8 {[%clk
0:00:03.2]} 30... Rxc8 {[%clk 0:00:12.7]} 31. Qxc8+ {[%clk 0:00:04.1]} 31... Kh7
{[%clk 0:00:13.4]} 32. Nf8+ {[%clk 0:00:04.4]} 32... Kg8 {[%clk 0:00:13.7]} 33.
Nxe6+ {[%clk 0:00:05.2]} 33... Kh7 {[%clk 0:00:13.9]} 34. Nf8+ {[%clk
0:00:06.1]} 34... Kg8 {[%clk 0:00:14.4]} 35. Nd7+ {[%clk 0:00:03.8]} 35... Kh7
{[%clk 0:00:14.7]} 36. Nxf6+ {[%clk 0:00:02.2]} 36... gxf6 {[%clk 0:00:15.6]}
37. Qf5+ {[%clk 0:00:02.1]} 37... Kg7 {[%clk 0:00:15.8]} 38. Qg4+ {[%clk
0:00:02.5]} 38... Kf8 {[%clk 0:00:16.1]} 39. Qc8+ {[%clk 0:00:02.6]} 39... Kg7
{[%clk 0:00:16.5]} 40. Qxa6 {[%clk 0:00:03.5]} 40... Qxc2 {[%clk 0:00:14.5]} 41.
Qb5 {[%clk 0:00:02.1]} 41... Qf2 {[%clk 0:00:13.2]} 42. Qb3 {[%clk 0:00:02.7]}
42... h5 {[%clk 0:00:12.9]} 43. a4 {[%clk 0:00:03]} 43... Qa7 {[%clk 0:00:11.5]}
44. Qb4 {[%clk 0:00:02.3]} 44... Qe3 {[%clk 0:00:11.1]} 45. Qa3 {[%clk
0:00:02.9]} 45... Qa7 {[%clk 0:00:10.5]} 46. a5 {[%clk 0:00:03.3]} 46... Qa6
{[%clk 0:00:11.1]} 47. Qb4 {[%clk 0:00:02.5]} 47... Qd3 {[%clk 0:00:10.4]} 48.
Qb6 {[%clk 0:00:02.5]} 48... Qc4+ {[%clk 0:00:09.4]} 49. Ka3 {[%clk 0:00:02.9]}
49... Qd3+ {[%clk 0:00:09.2]} 50. b3 {[%clk 0:00:03]} 50... Qxg3 {[%clk
0:00:09.4]} 51. a6 {[%clk 0:00:02.6]} 51... Qxf4 {[%clk 0:00:09.8]} 52. a7
{[%clk 0:00:02]} 52... Qc1+ {[%clk 0:00:09.3]} 53. Kb4 {[%clk 0:00:02]} 53...
Qd2+ {[%clk 0:00:09.7]} 54. Kb5 {[%clk 0:00:02.5]} 54... Qd3+ {[%clk 0:00:09.6]}
55. Kc6 {[%clk 0:00:02.6]} 55... Qc3+ {[%clk 0:00:09.1]} 56. Kb7 {[%clk
0:00:02.7]} 56... Qf3+ {[%clk 0:00:08.3]} 57. Kb8 {[%clk 0:00:02.6]} 57... Qf4+
{[%clk 0:00:07.1]} 58. Qc7 {[%clk 0:00:02.5]} 58... Qb4+ {[%clk 0:00:07.2]} 59.
Kc8 {[%clk 0:00:02.9]} 59... Qg4+ {[%clk 0:00:05.1]} 60. Kd8 {[%clk 0:00:02.8]}
60... Qd4+ {[%clk 0:00:05.3]} 61. Ke8 {[%clk 0:00:03.2]} 61... Qe4+ {[%clk
0:00:04.3]} 62. Qe7 {[%clk 0:00:03.9]} 62... Qa8+ {[%clk 0:00:04.2]} 63. Qd8
{[%clk 0:00:04.2]} 63... Qxa7 {[%clk 0:00:04.5]} 64. Qd3 {[%clk 0:00:03.1]}
64... Qb8+ {[%clk 0:00:04]} 65. Ke7 {[%clk 0:00:03.2]} 65... Qb7+ {[%clk
0:00:04.6]} 66. Kd6 {[%clk 0:00:03.2]} 66... Qb6+ {[%clk 0:00:04.5]} 67. Kd7
{[%clk 0:00:03.4]} 67... Qb7+ {[%clk 0:00:04.3]} 68. Kd6 {[%clk 0:00:04]} 68...
Qb8+ {[%clk 0:00:04.6]} 69. Kc6 {[%clk 0:00:04.1]} 69... Qe5 {[%clk 0:00:04.7]}
70. b4 {[%clk 0:00:02.7]} 70... h4 {[%clk 0:00:04.4]} 71. b5 {[%clk 0:00:02.8]}
71... Qe6+ {[%clk 0:00:04.9]} 72. Kc7 {[%clk 0:00:02.7]} 72... h3 {[%clk
0:00:05.6]} 73. b6 {[%clk 0:00:02.3]} 73... Qe5+ {[%clk 0:00:06]} 74. Kc8 {[%clk
0:00:01.6]} 74... h2 {[%clk 0:00:06.6]} 75. Qf1 {[%clk 0:00:01.6]} 75... Qc5+
{[%clk 0:00:05.7]} 76. Kb7 {[%clk 0:00:02.2]} 76... Qd5+ {[%clk 0:00:05.4]} 77.
Kc7 {[%clk 0:00:02.4]} 77... h1=Q {[%clk 0:00:06.3]} 78. Qf2 {[%clk 0:00:02]}
78... Qhe4 {[%clk 0:00:05.2]} 79. Kc8 {[%clk 0:00:01.8]} 79... Qee6+ {[%clk
0:00:04.8]} 80. Kb8 {[%clk 0:00:02.1]} 80... Qdd6+ {[%clk 0:00:05.1]} 81. Ka7
{[%clk 0:00:02.4]} 81... Qa3+ {[%clk 0:00:04.6]} 82. Kb8 {[%clk 0:00:02.5]}
82... Qe8+ {[%clk 0:00:04.6]} 83. Kc7 {[%clk 0:00:02.5]} 83... Qee7+ {[%clk
0:00:05]} 84. Kb8 {[%clk 0:00:02.4]} 84... Qd8+ {[%clk 0:00:05.1]} 85. Kb7
{[%clk 0:00:02.5]} 85... Qae7+ {[%clk 0:00:05.2]} 86. Ka6 {[%clk 0:00:02.7]}
86... Qa8+ {[%clk 0:00:05.1]} 87. Kb5 {[%clk 0:00:02.5]} 87... Qd7+ {[%clk
0:00:05.6]} 88. Kc4 {[%clk 0:00:01.8]} 88... Qad5+ {[%clk 0:00:05.7]} 89. Kb4
{[%clk 0:00:01.9]} 89... Qd4+ {[%clk 0:00:05.6]} 90. Qxd4 {[%clk 0:00:01.6]}
90... Qxd4+ {[%clk 0:00:06.5]} 91. Kb5 {[%clk 0:00:02.1]} 91... Qd5+ {[%clk
0:00:06.7]} 92. Ka6 {[%clk 0:00:02.5]} 92... f5 {[%clk 0:00:07.3]} 93. Ka7
{[%clk 0:00:02.9]} 93... f4 {[%clk 0:00:07.6]} 94. b7 {[%clk 0:00:02.9]} 94...
Qxb7+ {[%clk 0:00:07.9]} 95. Kxb7 {[%clk 0:00:03]} 95... f3 {[%clk 0:00:08.8]}
96. Kc8 {[%clk 0:00:03.6]} 96... f2 {[%clk 0:00:09.7]} 97. Kc7 {[%clk
0:00:04.4]} 97... f1=Q {[%clk 0:00:10.6]} 98. Kc6 {[%clk 0:00:04.6]} 98... Qd1
{[%clk 0:00:11.5]} 99. Kc7 {[%clk 0:00:04.9]} 99... f5 {[%clk 0:00:12.4]} 100.
Kb8 {[%clk 0:00:05.8]} 100... f4 {[%clk 0:00:13.3]} 101. Kc7 {[%clk 0:00:06.7]}
101... f3 {[%clk 0:00:14.2]} 102. Kb6 {[%clk 0:00:07.4]} 102... f2 {[%clk
0:00:15.1]} 103. Kc5 {[%clk 0:00:08.3]} 103... f1=Q {[%clk 0:00:15.7]} 104. Kb4
{[%clk 0:00:09.2]} 104... Qfe2 {[%clk 0:00:15.9]} 105. Ka5 {[%clk 0:00:08]}
105... Qec2 {[%clk 0:00:16.1]} 106. Ka6 {[%clk 0:00:07.6]} 106... Qdb1 {[%clk
0:00:16.4]} 107. Ka7 {[%clk 0:00:08.5]} 107... Qca2# {[%clk 0:00:16.5]} 0-1

[Event "Late-Titled-Tuesday-Blitz-March-05-2024"]
[Site "Chess.com"]
[Date "2024.03.05"]
[Round "5"]
[White "MagnusCarlsen"]
[Black "Mr_Heisenberg13"]
[Result "1-0"]
[WhiteElo "3259"]
[BlackElo "2834"]
[TimeControl "180+1"]
[EndTime "14:57:33 PST"]
[Termination "MagnusCarlsen won by checkmate"]

1. Nf3 {[%clk 0:02:56.1]} 1... d5 {[%clk 0:02:59.4]} 2. g3 {[%clk 0:02:38.4]}
2... g6 {[%clk 0:02:55.6]} 3. Bg2 {[%clk 0:02:37.1]} 3... Bg7 {[%clk 0:02:56.1]}
4. O-O {[%clk 0:02:37.2]} 4... e5 {[%clk 0:02:54.4]} 5. d3 {[%clk 0:02:37.6]}
5... Ne7 {[%clk 0:02:53.6]} 6. Nbd2 {[%clk 0:02:33.1]} 6... O-O {[%clk
0:02:52.8]} 7. Rb1 {[%clk 0:02:33.7]} 7... c5 {[%clk 0:02:51.2]} 8. a3 {[%clk
0:02:30.2]} 8... a5 {[%clk 0:02:50.3]} 9. a4 {[%clk 0:02:29.1]} 9... Nbc6 {[%clk
0:02:49.5]} 10. e4 {[%clk 0:02:28.8]} 10... f6 {[%clk 0:02:46.2]} 11. Re1 {[%clk
0:02:27.7]} 11... Be6 {[%clk 0:02:45.5]} 12. exd5 {[%clk 0:02:28]} 12... Nxd5
{[%clk 0:02:45.5]} 13. Nc4 {[%clk 0:02:27.8]} 13... Ndb4 {[%clk 0:02:36.8]} 14.
Nfd2 {[%clk 0:02:23.1]} 14... Rc8 {[%clk 0:02:32.7]} 15. Ne4 {[%clk 0:02:21.4]}
15... b6 {[%clk 0:02:28.9]} 16. Ned6 {[%clk 0:02:18.4]} 16... Rc7 {[%clk
0:02:21.5]} 17. c3 {[%clk 0:02:18.5]} 17... Nd5 {[%clk 0:02:14.2]} 18. Qb3
{[%clk 0:01:59.1]} 18... Rd7 {[%clk 0:02:05.9]} 19. Ne4 {[%clk 0:01:49.9]} 19...
Ndb4 {[%clk 0:01:43.3]} 20. cxb4 {[%clk 0:01:23.8]} 20... Rxd3 {[%clk
0:01:43.3]} 21. Nxe5 {[%clk 0:01:14.5]} 21... Bxb3 {[%clk 0:01:36.5]} 22. Nxc6
{[%clk 0:01:12.6]} 22... Qd7 {[%clk 0:01:23.8]} 23. b5 {[%clk 0:01:06.4]} 23...
Bxa4 {[%clk 0:01:20]} 24. Nc3 {[%clk 0:01:05.2]} 24... Bc2 {[%clk 0:01:17]} 25.
Ra1 {[%clk 0:01:04.9]} 25... Bb3 {[%clk 0:01:17.5]} 26. Be3 {[%clk 0:01:00.1]}
26... f5 {[%clk 0:01:16.2]} 27. h4 {[%clk 0:00:55.5]} 27... Re8 {[%clk
0:01:15.4]} 28. Kh2 {[%clk 0:00:52.2]} 28... Bxc3 {[%clk 0:01:10.9]} 29. bxc3
{[%clk 0:00:51.2]} 29... Bd5 {[%clk 0:01:11.3]} 30. Bxd5+ {[%clk 0:00:48.5]}
30... Qxd5 {[%clk 0:01:09]} 31. Bg5 {[%clk 0:00:47.9]} 31... Re4 {[%clk
0:00:49.8]} 32. Ne7+ {[%clk 0:00:30.5]} 32... Rxe7 {[%clk 0:00:49.2]} 33. Rxe7
{[%clk 0:00:31.4]} 33... Rd1 {[%clk 0:00:39.8]} 34. Rxd1 {[%clk 0:00:24.2]}
34... Qxd1 {[%clk 0:00:40.7]} 35. Re6 {[%clk 0:00:19.1]} 35... a4 {[%clk
0:00:25.2]} 36. Rxb6 {[%clk 0:00:18.9]} 36... Qc2 {[%clk 0:00:23.1]} 37. Be3
{[%clk 0:00:18]} 37... a3 {[%clk 0:00:22.7]} 38. Ra6 {[%clk 0:00:18]} 38... a2
{[%clk 0:00:19.6]} 39. b6 {[%clk 0:00:18.2]} 39... Qb1 {[%clk 0:00:18.5]} 40. b7
{[%clk 0:00:15.7]} 40... Qxb7 {[%clk 0:00:17.5]} 41. Rxa2 {[%clk 0:00:15.7]}
41... Qf3 {[%clk 0:00:17.4]} 42. Ra4 {[%clk 0:00:11.4]} 42... h6 {[%clk
0:00:12.2]} 43. Rf4 {[%clk 0:00:08.6]} 43... Qd5 {[%clk 0:00:11.8]} 44. Ra4
{[%clk 0:00:08.6]} 44... Qd3 {[%clk 0:00:09]} 45. Ra8+ {[%clk 0:00:05.2]} 45...
Kf7 {[%clk 0:00:09]} 46. Ra7+ {[%clk 0:00:06.1]} 46... Ke6 {[%clk 0:00:08.6]}
47. Rg7 {[%clk 0:00:04.8]} 47... Kf6 {[%clk 0:00:08.5]} 48. Rc7 {[%clk
0:00:04.7]} 48... Qxc3 {[%clk 0:00:08.5]} 49. Rc6+ {[%clk 0:00:04.7]} 49... Kf7
{[%clk 0:00:08.1]} 50. Rxc5 {[%clk 0:00:05.6]} 50... Qb2 {[%clk 0:00:08.5]} 51.
h5 {[%clk 0:00:04.4]} 51... gxh5 {[%clk 0:00:08.1]} 52. Rxf5+ {[%clk 0:00:04.3]}
52... Kg6 {[%clk 0:00:08.7]} 53. Rc5 {[%clk 0:00:04.7]} 53... Qb7 {[%clk
0:00:07.8]} 54. Ra5 {[%clk 0:00:04.3]} 54... Kh7 {[%clk 0:00:07.3]} 55. Rxh5
{[%clk 0:00:04]} 55... Kg8 {[%clk 0:00:06.5]} 56. Rxh6 {[%clk 0:00:04.9]} 56...
Qf3 {[%clk 0:00:06.9]} 57. Rh4 {[%clk 0:00:05.3]} 57... Kg7 {[%clk 0:00:06.5]}
58. Rf4 {[%clk 0:00:05.7]} 58... Qe2 {[%clk 0:00:07.1]} 59. Kg2 {[%clk
0:00:06.1]} 59... Kg6 {[%clk 0:00:07.7]} 60. g4 {[%clk 0:00:06.5]} 60... Qc2
{[%clk 0:00:08.3]} 61. Kg3 {[%clk 0:00:06.5]} 61... Qc7 {[%clk 0:00:08.9]} 62.
Kg2 {[%clk 0:00:05.7]} 62... Qc6+ {[%clk 0:00:09.2]} 63. f3 {[%clk 0:00:06.3]}
63... Qc2+ {[%clk 0:00:09.7]} 64. Bf2 {[%clk 0:00:06.9]} 64... Qd1 {[%clk
0:00:10.3]} 65. Re4 {[%clk 0:00:07.8]} 65... Qc2 {[%clk 0:00:10.1]} 66. Kg3
{[%clk 0:00:08.1]} 66... Qd1 {[%clk 0:00:10.5]} 67. f4 {[%clk 0:00:07.4]} 67...
Qd3+ {[%clk 0:00:10.5]} 68. Re3 {[%clk 0:00:07.9]} 68... Qd2 {[%clk 0:00:11.1]}
69. Re6+ {[%clk 0:00:06.9]} 69... Kf7 {[%clk 0:00:11.5]} 70. f5 {[%clk
0:00:07.8]} 70... Qd3+ {[%clk 0:00:11.7]} 71. Be3 {[%clk 0:00:08.5]} 71... Qf1
{[%clk 0:00:11.9]} 72. Kh4 {[%clk 0:00:05.8]} 72... Qf3 {[%clk 0:00:11.6]} 73.
Kg5 {[%clk 0:00:05.9]} 73... Qd1 {[%clk 0:00:12.2]} 74. Rf6+ {[%clk 0:00:05]}
74... Kg7 {[%clk 0:00:11.9]} 75. Rg6+ {[%clk 0:00:05]} 75... Kf7 {[%clk
0:00:12.6]} 76. Bf4 {[%clk 0:00:05]} 76... Qd8+ {[%clk 0:00:11.7]} 77. Kh5
{[%clk 0:00:05.5]} 77... Qh8+ {[%clk 0:00:12.1]} 78. Bh6 {[%clk 0:00:05.7]}
78... Qa1 {[%clk 0:00:12.7]} 79. Rg7+ {[%clk 0:00:05.9]} 79... Kf6 {[%clk
0:00:12.8]} 80. Rg6+ {[%clk 0:00:05.4]} 80... Kf7 {[%clk 0:00:13.4]} 81. Bg5
{[%clk 0:00:05.9]} 81... Qh1+ {[%clk 0:00:13]} 82. Bh4 {[%clk 0:00:05.9]} 82...
Qa8 {[%clk 0:00:13.6]} 83. Rh6 {[%clk 0:00:05.4]} 83... Kg7 {[%clk 0:00:13]} 84.
f6+ {[%clk 0:00:04.4]} 84... Kf7 {[%clk 0:00:12.9]} 85. Rh7+ {[%clk 0:00:04.9]}
85... Ke6 {[%clk 0:00:13.3]} 86. Re7+ {[%clk 0:00:04.5]} 86... Kd6 {[%clk
0:00:13]} 87. Bg5 {[%clk 0:00:03.5]} 87... Qh8+ {[%clk 0:00:13]} 88. Kg6 {[%clk
0:00:03.8]} 88... Qg8+ {[%clk 0:00:13.6]} 89. Rg7 {[%clk 0:00:03.6]} 89... Qe6
{[%clk 0:00:12.4]} 90. Kh5 {[%clk 0:00:02.6]} 90... Qe1 {[%clk 0:00:09.9]} 91.
f7 {[%clk 0:00:02.7]} 91... Qh1+ {[%clk 0:00:10.3]} 92. Kg6 {[%clk 0:00:03.2]}
92... Qb1+ {[%clk 0:00:10.9]} 93. Kh6 {[%clk 0:00:02.9]} 93... Qh1+ {[%clk
0:00:11]} 94. Kg6 {[%clk 0:00:03.7]} 94... Qb1+ {[%clk 0:00:11.6]} 95. Kh5
{[%clk 0:00:04.6]} 95... Qh1+ {[%clk 0:00:10.5]} 96. Bh4 {[%clk 0:00:05.4]}
96... Qd5+ {[%clk 0:00:11]} 97. Kh6 {[%clk 0:00:05.7]} 97... Qd2+ {[%clk
0:00:08.1]} 98. Kh7 {[%clk 0:00:04.8]} 98... Qc2+ {[%clk 0:00:08.6]} 99. Kh8
{[%clk 0:00:04.7]} 99... Qc8+ {[%clk 0:00:08.6]} 100. Rg8 {[%clk 0:00:03.7]}
100... Qc3+ {[%clk 0:00:07.6]} 101. Kh7 {[%clk 0:00:04.4]} 101... Qd3+ {[%clk
0:00:07.7]} 102. Rg6+ {[%clk 0:00:04.7]} 102... Kd7 {[%clk 0:00:06.3]} 103. f8=Q
{[%clk 0:00:04.8]} 103... Qd5 {[%clk 0:00:03.7]} 104. Qd8# {[%clk 0:00:04.2]}
1-0

[Event "Late-Titled-Tuesday-Blitz-March-05-2024"]
[Site "Chess.com"]
[Date "2024.03.05"]
[Round "6"]
[White "GoltsevDmitry2000"]
[Black "Irishchessman16"]
[Result "1-0"]
[WhiteElo "2705"]
[BlackElo "2532"]
[TimeControl "180+1"]
[EndTime "15:00:55 PST"]
[Termination "GoltsevDmitry2000 won by resignation"]

1. e4 {[%clk 0:02:59.4]} 1... d6 {[%clk 0:02:51.6]} 2. d4 {[%clk 0:02:58.3]}
2... e5 {[%clk 0:02:51.4]} 3. dxe5 {[%clk 0:02:58.1]} 3... dxe5 {[%clk
0:02:50.6]} 4. Qxd8+ {[%clk 0:02:59]} 4... Kxd8 {[%clk 0:02:50.6]} 5. Nf3 {[%clk
0:02:59.5]} 5... f6 {[%clk 0:02:45.6]} 6. Bc4 {[%clk 0:02:59.5]} 6... c6 {[%clk
0:02:45.1]} 7. Nc3 {[%clk 0:02:57.6]} 7... Kc7 {[%clk 0:02:45.1]} 8. Be3 {[%clk
0:02:56.7]} 8... Bg4 {[%clk 0:02:44.6]} 9. O-O-O {[%clk 0:02:53.9]} 9... Nd7
{[%clk 0:02:43.4]} 10. h3 {[%clk 0:02:53.5]} 10... Bh5 {[%clk 0:02:38.2]} 11.
Be6 {[%clk 0:02:51.6]} 11... Be8 {[%clk 0:02:11.1]} 12. Rd2 {[%clk 0:02:45]}
12... Nc5 {[%clk 0:02:07]} 13. Bxc5 {[%clk 0:02:23.3]} 13... Bxc5 {[%clk
0:02:05.8]} 14. Rhd1 {[%clk 0:02:24]} 14... Ne7 {[%clk 0:02:03.1]} 15. Na4
{[%clk 0:02:21.8]} 15... Bb4 {[%clk 0:01:43.4]} 16. c3 {[%clk 0:02:21]} 16... b5
{[%clk 0:01:43]} 17. Rd7+ {[%clk 0:02:18.1]} 17... Bxd7 {[%clk 0:01:40.3]} 18.
Rxd7+ {[%clk 0:02:19]} 18... Kb8 {[%clk 0:01:39.2]} 19. cxb4 {[%clk 0:02:19.3]}
19... bxa4 {[%clk 0:01:39.1]} 20. Rxe7 {[%clk 0:02:19.2]} 1-0

[Event "Late-Titled-Tuesday-Blitz-March-05-2024"]
[Site "Chess.com"]
[Date "2024.03.05"]
[Round "6"]
[White "TokChess"]
[Black "Goryachkina"]
[Result "0-1"]
[WhiteElo "2537"]
[BlackElo "2714"]
[TimeControl "180+1"]
[EndTime "15:01:11 PST"]
[Termination "Goryachkina won by resignation"]

1. d4 {[%clk 0:02:56.6]} 1... Nf6 {[%clk 0:02:59.8]} 2. c4 {[%clk 0:02:56.6]}
2... e6 {[%clk 0:03:00.2]} 3. Nf3 {[%clk 0:02:55.8]} 3... d5 {[%clk 0:03:00.1]}
4. Nc3 {[%clk 0:02:55.6]} 4... Bb4 {[%clk 0:02:53.6]} 5. e3 {[%clk 0:02:44.6]}
5... O-O {[%clk 0:02:51.9]} 6. Bd3 {[%clk 0:02:41.3]} 6... dxc4 {[%clk
0:02:49.7]} 7. Bxc4 {[%clk 0:02:42.2]} 7... c5 {[%clk 0:02:49.9]} 8. O-O {[%clk
0:02:42]} 8... Nc6 {[%clk 0:02:50]} 9. a3 {[%clk 0:02:41.4]} 9... Ba5 {[%clk
0:02:50.4]} 10. dxc5 {[%clk 0:02:35.5]} 10... Bxc3 {[%clk 0:02:49.4]} 11. bxc3
{[%clk 0:02:36.4]} 11... Qxd1 {[%clk 0:02:44.5]} 12. Rxd1 {[%clk 0:02:36.1]}
12... Bd7 {[%clk 0:02:39.9]} 13. Rb1 {[%clk 0:02:08]} 13... Na5 {[%clk
0:02:35.6]} 14. Bb5 {[%clk 0:02:05.6]} 14... Rfd8 {[%clk 0:02:28.6]} 15. Kf1
{[%clk 0:01:14.4]} 15... Bxb5+ {[%clk 0:02:21.5]} 0-1

[Event "Late-Titled-Tuesday-Blitz-March-05-2024"]
[Site "Chess.com"]
[Date "2024.03.05"]
[Round "6"]
[White "Slovak_fighter2000"]
[Black "baag"]
[Result "0-1"]
[WhiteElo "2642"]
[BlackElo "2856"]
[TimeControl "180+1"]
[EndTime "15:01:49 PST"]
[Termination "baag won by resignation"]

1. c4 {[%clk 0:02:59.8]} 1... e6 {[%clk 0:02:59.8]} 2. Nf3 {[%clk 0:02:59.4]}
2... d5 {[%clk 0:03:00.4]} 3. d4 {[%clk 0:02:59.8]} 3... Nf6 {[%clk 0:03:00.7]}
4. Nc3 {[%clk 0:02:59.2]} 4... a6 {[%clk 0:03:01.1]} 5. cxd5 {[%clk 0:02:59.1]}
5... exd5 {[%clk 0:03:02]} 6. Bg5 {[%clk 0:02:59.5]} 6... Be6 {[%clk 0:03:02.2]}
7. Bxf6 {[%clk 0:02:59.2]} 7... Qxf6 {[%clk 0:03:03.1]} 8. Qb3 {[%clk
0:02:59.6]} 8... Ra7 {[%clk 0:03:03.9]} 9. e3 {[%clk 0:02:58.1]} 9... Qd8 {[%clk
0:03:01.9]} 10. Be2 {[%clk 0:02:57.6]} 10... c6 {[%clk 0:03:01.4]} 11. O-O
{[%clk 0:02:57.5]} 11... Nd7 {[%clk 0:03:02.1]} 12. Qc2 {[%clk 0:02:54.2]} 12...
Bd6 {[%clk 0:03:02.3]} 13. Bd3 {[%clk 0:02:44.1]} 13... g6 {[%clk 0:03:00.4]}
14. e4 {[%clk 0:02:40.1]} 14... dxe4 {[%clk 0:03:01.3]} 15. Nxe4 {[%clk
0:02:40.4]} 15... Be7 {[%clk 0:03:01.4]} 16. Nc5 {[%clk 0:02:33.6]} 16... Nxc5
{[%clk 0:02:59.4]} 17. dxc5 {[%clk 0:02:34.5]} 17... Qa5 {[%clk 0:03:00]} 18.
Rfc1 {[%clk 0:02:27.5]} 18... O-O {[%clk 0:02:59.6]} 19. a3 {[%clk 0:02:18.9]}
19... Rd8 {[%clk 0:02:59.6]} 20. b4 {[%clk 0:02:17.4]} 20... Qc7 {[%clk
0:03:00]} 21. Bc4 {[%clk 0:02:14.3]} 21... Bf6 {[%clk 0:02:57.4]} 22. Rab1
{[%clk 0:02:07.5]} 22... Bf5 {[%clk 0:02:55.8]} 23. Qb3 {[%clk 0:02:01.4]} 23...
Bxb1 {[%clk 0:02:55.5]} 24. Rxb1 {[%clk 0:02:02.3]} 24... Raa8 {[%clk
0:02:52.1]} 25. g3 {[%clk 0:01:58.5]} 25... Rd7 {[%clk 0:02:47.7]} 26. Re1
{[%clk 0:01:55.7]} 26... Re7 {[%clk 0:02:47.9]} 27. Rxe7 {[%clk 0:01:52.8]}
27... Qxe7 {[%clk 0:02:48.8]} 28. Kg2 {[%clk 0:01:53.2]} 28... Rd8 {[%clk
0:02:45.8]} 29. h4 {[%clk 0:01:51.6]} 29... h5 {[%clk 0:02:42]} 30. Qc2 {[%clk
0:01:49.8]} 30... Kg7 {[%clk 0:02:42.5]} 31. Qb3 {[%clk 0:01:45.6]} 31... Qe4
{[%clk 0:02:38.7]} 32. Bf1 {[%clk 0:01:39.2]} 32... Rd2 {[%clk 0:02:29.2]} 33.
Kg1 {[%clk 0:01:32.1]} 33... Rb2 {[%clk 0:02:27.9]} 34. Qd1 {[%clk 0:01:29.9]}
34... Rb1 {[%clk 0:02:24.5]} 35. Nd2 {[%clk 0:01:22.5]} 35... Qh1+ {[%clk
0:02:24.8]} 36. Kxh1 {[%clk 0:01:19.7]} 36... Rxd1 {[%clk 0:02:25.7]} 0-1

[Event "Late-Titled-Tuesday-Blitz-March-05-2024"]
[Site "Chess.com"]
[Date "2024.03.05"]
[Round "6"]
[White "Abund"]
[Black "Oleksandr_Bortnyk"]
[Result "0-1"]
[WhiteElo "2796"]
[BlackElo "3005"]
[TimeControl "180+1"]
[EndTime "15:02:03 PST"]
[Termination "Oleksandr_Bortnyk won by resignation"]

1. Nf3 {[%clk 0:03:00.9]} 1... Nf6 {[%clk 0:02:59.7]} 2. g3 {[%clk 0:03:01]}
2... b6 {[%clk 0:03:00.2]} 3. Bg2 {[%clk 0:03:01.3]} 3... Bb7 {[%clk 0:03:01.1]}
4. d4 {[%clk 0:02:59.9]} 4... g6 {[%clk 0:03:01.2]} 5. O-O {[%clk 0:02:59.9]}
5... Bg7 {[%clk 0:03:01.7]} 6. c4 {[%clk 0:03:00.3]} 6... O-O {[%clk 0:03:01.3]}
7. Nc3 {[%clk 0:03:00.8]} 7... Ne4 {[%clk 0:03:01.4]} 8. Nxe4 {[%clk 0:02:51.8]}
8... Bxe4 {[%clk 0:03:02.3]} 9. Bf4 {[%clk 0:02:51]} 9... d6 {[%clk 0:03:01]}
10. Qd2 {[%clk 0:02:50.7]} 10... c5 {[%clk 0:03:01.3]} 11. d5 {[%clk 0:02:46.9]}
11... Re8 {[%clk 0:03:00.7]} 12. Bh6 {[%clk 0:02:46.5]} 12... Bxh6 {[%clk
0:02:57.4]} 13. Qxh6 {[%clk 0:02:46.4]} 13... Bxf3 {[%clk 0:02:58.3]} 14. Bxf3
{[%clk 0:02:47.2]} 14... Nd7 {[%clk 0:02:59.2]} 15. Rac1 {[%clk 0:02:39.3]}
15... b5 {[%clk 0:02:58.3]} 16. b3 {[%clk 0:02:35.2]} 16... Qa5 {[%clk
0:02:55.3]} 17. Rc2 {[%clk 0:02:18.2]} 17... bxc4 {[%clk 0:02:54.2]} 18. bxc4
{[%clk 0:02:12.7]} 18... Rab8 {[%clk 0:02:54.5]} 19. Rfc1 {[%clk 0:01:54.8]}
19... Rb4 {[%clk 0:02:53.6]} 20. h4 {[%clk 0:01:44.7]} 20... Reb8 {[%clk
0:02:53.1]} 21. Qg5 {[%clk 0:01:36.6]} 21... Nf6 {[%clk 0:02:43.9]} 22. h5
{[%clk 0:01:31.3]} 22... Rb2 {[%clk 0:02:42.3]} 23. Qe3 {[%clk 0:01:24.6]} 23...
Kf8 {[%clk 0:02:39.1]} 24. Qh6+ {[%clk 0:01:19.1]} 24... Kg8 {[%clk 0:02:37.1]}
25. Qe3 {[%clk 0:01:18.9]} 25... Rxc2 {[%clk 0:02:33.5]} 26. Rxc2 {[%clk
0:01:18.1]} 26... Qe1+ {[%clk 0:02:34]} 27. Kh2 {[%clk 0:01:13.6]} 27... Rb1
{[%clk 0:02:33.7]} 28. h6 {[%clk 0:01:09.2]} 28... Ng4+ {[%clk 0:02:33.6]} 29.
Kh3 {[%clk 0:01:03.7]} 29... Nxe3 {[%clk 0:02:33.2]} 30. fxe3 {[%clk 0:01:04.4]}
30... Qf2 {[%clk 0:02:22.9]} 31. Rb2 {[%clk 0:00:54.8]} 31... Rxb2 {[%clk
0:02:22.4]} 0-1